bitfinex-derivatives/quotes_ETHF0:USTF0_20250213
["timestamp","ask_amount","ask_price","bid_price","bid_amount"]
[1739408956755,3.2078,2732.9,2732.6,0.5905]
[1739408956945,3.2078,2732.9,2732.7,0.73184]
[1739408957353,3.2078,2732.9,2732.6,1.32235]
[1739408957662,3.2078,2732.9,2732.7,0.73184]
[1739408958055,3.2078,2732.9,2732.7,41.53184]
[1739408958657,3.2078,2732.9,2732.7,40.8]
[1739408958858,3.2078,2732.9,2732.7,0.73184]
[1739408959758,3.2078,2732.9,2732.7,41.53184]
[1739408960157,3.2078,2732.9,2732.7,40.8]
[1739408960356,3.2078,2732.9,2732.7,41.53184]
[1739408960556,3.2078,2732.9,2732.7,40.8]
[1739408960957,3.2078,2732.9,2732.7,41.53184]
[1739408961458,3.2078,2732.9,2732.6,0.5905]
[1739408961856,3.2078,2732.9,2732.7,0.73184]
[1739408962753,0.73176,2733.0,2732.6,41.3905]
[1739408962754,0.3666,2733.0,2732.6,41.3905]
[1739408962952,3.2078,2733.6,2733.5,0.73162]
[1739408963163,3.2078,2733.6,2733.4,3.89774645]
[1739408963362,3.93941,2733.6,2733.4,3.16609645]
[1739408963564,3.9394,2733.6,2733.4,3.89773645]
[1739408963760,3.9394,2733.6,2733.4,3.16609645]
[1739408963967,0.73162,2733.5,2733.4,3.16609645]
[1739408964163,3.2078,2733.6,2733.4,3.16609645]
[1739408964363,3.93942,2733.6,2733.4,3.89774645]
[1739408964864,3.93941,2733.6,2733.4,3.16609645]
[1739408965259,3.93941,2733.6,2733.4,3.89773645]
[1739408965460,2.71837075,2734.1,2733.4,3.89773645]
[1739408965461,0.39325356,2734.7,2733.5,3.2078]
[1739408965665,5.4248,2734.6,2734.0,3.16609645]
[1739408965864,0.73139,2734.4,2734.1,0.73145]
[1739408966056,0.73139,2734.4,2734.0,3.16609645]
[1739408966255,1.655,2734.5,2734.0,3.16609645]
[1739408966468,2.38637,2734.5,2734.0,3.16609645]
[1739408966867,0.562,2734.6,2734.3,3.16609645]
[1739408967066,3.2078,2735.9,2734.5,6.37389645]
[1739408967273,3.2078,2735.9,2735.6,3.16609645]
[1739408967564,3.2078,2735.9,2735.7,40.8]
[1739408967763,0.3666,2736.5,2735.7,47.17389645]
[1739408968060,0.3666,2736.5,2736.2,3.16609645]
[1739408968271,0.3666,2736.5,2735.8,0.5946]
[1739408968272,0.73092,2736.2,2735.9,3.16609645]
[1739408968462,0.73092,2736.2,2735.8,0.5946]
[1739408968774,0.73101,2735.8,2735.7,40.8]
[1739408969271,3.2078,2736.0,2735.7,40.8]
[1739408969761,0.73099,2735.9,2735.7,40.8]
[1739408970158,3.2078,2736.0,2735.7,40.8]
[1739408970365,3.2078,2736.0,2735.6,3.16609645]
[1739408970967,3.2078,2736.0,2735.7,40.8]
[1739408970968,4.8678,2736.0,2735.7,40.8]
[1739408971369,4.8678,2736.0,2735.6,3.16609645]
[1739408971766,3.2078,2736.0,2735.6,3.16609645]
[1739408971962,3.2078,2736.0,2735.9,3.16609645]
[1739408972761,3.2078,2736.0,2735.9,43.96609645]
[1739408973765,3.2078,2736.0,2735.9,3.16609645]
[1739408975069,3.2078,2736.0,2735.6,3.16609645]
[1739408975272,0.731,2735.9,2735.6,3.16609645]
[1739408975670,0.73102,2735.8,2735.6,3.16609645]
[1739408975967,4.8678,2736.0,2735.6,3.16609645]
[1739408976773,0.731,2735.9,2735.6,3.16609645]
[1739408977073,5.59877,2736.0,2735.6,3.16609645]
[1739408977270,4.8678,2736.0,2735.6,3.89714645]
[1739408977571,5.59876,2736.0,2735.6,3.16609645]
[1739408977766,5.59271883,2736.0,2735.6,3.16609645]
[1739408978067,5.59271883,2736.0,2735.7,40.8]
[1739408978265,2.39096,2736.0,2735.7,40.8]
[1739408978465,3.2078,2735.8,2735.7,40.8]
[1739408978666,3.2078,2735.8,2735.6,3.16609645]
[1739408978866,3.93882,2735.8,2735.6,3.16609645]
[1739408979372,3.2078,2735.8,2735.7,40.8]
[1739408981963,1.653,2735.9,2735.7,40.8]
[1739408982169,3.5744,2736.4,2735.7,40.8]
[1739408982170,1.654,2736.3,2735.7,40.8]
[1739408982368,2.0206,2736.4,2735.8,0.5943]
[1739408982573,2.0206,2736.4,2736.0,3.2078]
[1739408982775,2.75146,2736.4,2735.8,0.5943]
[1739408982970,0.3666,2736.6,2736.1,3.2078]
[1739408983274,0.3666,2736.6,2736.5,3.89691645]
[1739408983671,0.3666,2736.9,2736.5,3.16609645]
[1739408983877,0.3666,2736.9,2736.8,0.73074]
[1739408984174,0.3666,2736.9,2736.8,41.53074]
[1739408984376,0.3666,2736.9,2736.8,40.8]
[1739408984573,0.73084,2736.5,2736.3,0.00548958]
[1739408984875,0.73085,2736.4,2736.3,0.00548958]
[1739408985071,8.03689645,2736.6,2736.3,0.00548958]
[1739408985272,4.8708,2736.6,2736.3,0.73634958]
[1739408985476,1.663,2736.6,2736.3,0.00548958]
[1739408985670,1.663,2736.6,2736.5,0.73082]
[1739408985869,1.663,2736.6,2736.3,0.00548958]
[1739408986375,1.663,2736.6,2736.3,0.73634958]
[1739408986777,1.663,2736.6,2736.3,0.00548958]
[1739408986967,2.3938,2736.6,2736.3,0.00548958]
[1739408987164,2.3938,2736.6,2736.3,0.73635958]
[1739408987764,2.3938,2736.6,2736.3,0.00548958]
[1739408987972,1.663,2736.6,2736.3,0.73635958]
[1739408988476,2.3938,2736.6,2736.3,0.73635958]
[1739408989074,1.663,2736.6,2736.3,0.00548958]
[1739408989377,0.73083,2736.5,2736.3,0.00548958]
[1739408989672,2.39381,2736.6,2736.3,0.73635958]
[1739408990271,1.663,2736.6,2736.3,0.00548958]
[1739408990580,0.73085,2736.4,2736.3,0.00548958]
[1739408990969,0.5669,2736.5,2736.3,0.00548958]
[1739408992077,0.5669,2736.5,2736.4,0.73085]
[1739408992390,1.29773,2736.5,2736.3,0.00548958]
[1739408992583,0.5669,2736.5,2736.3,0.73635958]
[1739408992980,0.5669,2736.5,2736.4,0.73085]
[1739408993277,0.5669,2736.5,2736.3,0.73634958]
[1739408993479,0.5669,2736.5,2736.3,0.00548958]
[1739408993783,0.5669,2736.5,2736.4,0.73085]
[1739408993979,0.5669,2736.5,2736.3,0.00548958]
[1739408994390,0.5669,2736.5,2736.3,0.73633958]
[1739408994589,1.29773,2736.5,2736.3,0.00548958]
[1739408994878,5.2334,2736.7,2736.4,0.73083]
[1739408994879,5.96419,2736.7,2736.4,0.73083]
[1739408995078,5.96419,2736.7,2736.3,0.00548958]
[1739408995079,0.73081,2736.6,2736.3,1.29094958]
[1739408995285,5.2334,2736.7,2736.3,0.56008958]
[1739408995473,0.73079,2736.6,2736.3,0.00548958]
[1739408995684,0.73085,2736.4,2736.3,0.00548958]
[1739408996179,5.2334,2736.7,2736.3,0.00548958]
[1739408996392,5.2334,2736.7,2736.3,0.73635958]
[1739408996588,0.73081,2736.6,2736.4,0.73085]
[1739408996786,0.73081,2736.6,2736.3,0.00548958]
[1739408996992,3.5744,2736.7,2736.3,0.00548958]
[1739408997189,5.2334,2736.7,2736.6,0.73079]
[1739408997689,3.5744,2736.7,2736.6,0.73079]
[1739408997893,0.3666,2736.9,2736.8,0.73074]
[1739408998191,0.3666,2736.9,2736.8,3.89683645]
[1739408998384,0.3666,2736.9,2736.8,44.69683645]
[1739408998692,3.2078,2737.1,2736.8,44.69683645]
[1739408998693,0.3666,2738.4,2736.8,58.28620928]
[1739408998885,0.3666,2737.9,2737.7,3.2078]
[1739408999188,0.3666,2737.9,2736.9,3.16609645]
[1739408999389,0.3666,2737.7,2737.5,0.00547935]
[1739408999585,2.0486,2737.6,2737.5,0.00547935]
[1739408999785,2.77913,2737.6,2737.5,0.00306747]
[1739409000691,0.7307,2737.0,2736.8,3.2078]
[1739409000886,0.7307,2737.0,2736.1,1.685]
[1739409000887,1.685,2736.9,2736.4,0.5918]
[1739409001087,0.5389,2736.8,2736.3,3.16609645]
[1739409001589,0.73078,2736.7,2736.3,3.16609645]
[1739409001786,1.69,2736.6,2736.3,3.1715758]
[1739409001993,0.54434526,2736.8,2736.3,3.1715758]
[1739409002187,0.00544526,2736.8,2736.7,0.73077]
[1739409003599,0.00544526,2736.8,2736.7,10.67925117]
[1739409003790,2.0566,2737.4,2737.3,0.73061]
[1739409004093,0.3666,2737.4,2737.3,0.73061]
[1739409004494,0.3666,2737.4,2737.3,1.28591]
[1739409004689,0.3666,2737.6,2737.3,0.5553]
[1739409004892,0.3666,2737.6,2737.5,3.93835]
[1739409005499,0.3666,2737.6,2737.5,3.2078]
[1739409005695,1.09713,2737.6,2737.5,3.2078]
[1739409006190,1.09721,2737.3,2737.2,3.2078]
[1739409006396,0.3666,2737.3,2737.2,3.2078]
[1739409006591,0.3666,2737.3,2736.7,0.5889]
[1739409006592,2.0586,2737.3,2736.7,0.5889]
[1739409006791,0.3666,2736.8,2736.7,0.5889]
[1739409007097,1.09734,2736.8,2736.7,3.2078]
[1739409007493,0.3666,2736.8,2736.7,3.2078]
[1739409007694,1.09734,2736.8,2736.4,0.73084]
[1739409007894,0.3666,2736.9,2736.3,7.16176052]
[1739409008094,0.914,2736.8,2736.6,0.73078]
[1739409008290,0.914,2736.8,2736.6,3.93858]
[1739409008796,0.73069,2737.0,2736.6,3.93858]
[1739409009192,1.03505254,2737.1,2736.9,3.2078]
[1739409009393,1.03505254,2737.1,2737.0,0.73069]
[1739409009597,0.5847,2737.1,2737.0,0.73069]
[1739409010098,2.0576,2737.3,2736.9,7.15628117]
[1739409010302,1.692,2737.7,2737.2,3.2078]
[1739409010596,0.73057,2737.5,2737.2,3.2078]
[1739409010804,0.73057,2737.5,2737.3,40.8]
[1739409011100,1.692,2737.7,2737.1,3.2078]
[1739409011101,0.73059,2737.4,2737.1,3.2078]
[1739409011299,1.692,2737.7,2737.1,3.2078]
[1739409011603,0.73063,2737.3,2737.2,40.8]
[1739409011796,0.73063,2737.3,2736.6,7.15628117]
[1739409011995,6.0072,2737.2,2736.4,0.5451]
[1739409012197,1.31306,2737.1,2736.4,0.5451]
[1739409012404,0.73069,2737.0,2736.7,0.73076]
[1739409012601,0.73069,2737.0,2736.7,3.2078]
[1739409012804,1.03275254,2737.1,2736.7,3.2078]
[1739409012994,0.7307,2737.0,2736.7,3.2078]
[1739409013196,0.5824,2737.1,2736.7,3.2078]
[1739409013400,0.73072,2736.9,2736.7,3.2078]
[1739409013599,0.7307,2737.0,2736.7,3.2078]
[1739409014099,0.949,2737.1,2736.5,3.2078]
[1739409014299,0.949,2737.1,2736.3,0.00547935]
[1739409014300,0.73081,2736.6,2736.3,0.00547935]
[1739409014490,0.73083,2736.5,2736.3,0.00547935]
[1739409014897,0.949,2737.1,2736.6,3.2078]
[1739409015196,1.706,2737.5,2736.9,7.15628117]
[1739409015397,1.706,2737.5,2737.4,0.73058]
[1739409015598,2.43657,2737.5,2737.1,0.73065]
[1739409015801,2.43657,2737.5,2737.0,0.5434]
[1739409016098,0.73061,2737.3,2737.0,1.27407]
[1739409016291,0.5752,2737.4,2737.0,0.5434]
[1739409016498,0.5752,2737.4,2737.1,0.73065]
[1739409017104,1.3058,2737.4,2737.0,0.5434]
[1739409017295,1.708,2737.4,2737.3,0.73059]
[1739409017794,0.9178,2738.0,2737.2,7.15628117]
[1739409018003,1.707,2737.9,2737.7,0.73048]
[1739409018194,1.707,2737.9,2737.5,3.2078]
[1739409018391,0.73053,2737.6,2737.5,3.2078]
[1739409018595,1.707,2737.9,2737.0,3.2078]
[1739409018596,0.73063,2737.3,2737.0,3.2078]
[1739409018806,0.5757,2737.5,2737.0,3.2078]
[1739409019003,0.5798,2737.2,2737.0,3.2078]
[1739409020002,1.31045,2737.2,2737.0,3.2078]
[1739409020204,0.5798,2737.2,2737.0,3.2078]
[1739409020701,0.5798,2737.2,2737.0,3.93847]
[1739409020901,0.5798,2737.2,2737.1,0.73066]
[1739409022303,3.5744,2737.7,2737.0,3.2078]
[1739409022508,2.43655,2737.6,2737.3,0.73059]
[1739409022708,2.43655,2737.6,2737.3,0.7306]
[1739409022912,0.73057,2737.5,2737.3,0.7306]
[1739409023510,1.1379,2737.9,2737.3,3.2078]
[1739409023707,1.707,2737.8,2737.6,3.2078]
[1739409023910,1.707,2737.8,2737.7,0.7305]
[1739409024302,0.5615,2737.9,2737.6,44.0078]
[1739409024609,0.5615,2737.9,2737.8,0.73047]
[1739409025208,0.5615,2737.9,2737.7,0.73048]
[1739409025606,1.29196,2737.9,2737.6,44.0078]
[1739409025908,0.5615,2737.9,2737.6,44.73832]
[1739409026114,0.5615,2737.9,2737.7,0.73048]
[1739409026612,0.5615,2737.9,2737.8,0.73047]
[1739409027404,0.5615,2737.9,2737.6,44.0078]
[1739409027605,0.5615,2737.9,2737.7,0.73049]
[1739409027802,0.5615,2737.9,2737.8,0.73047]
[1739409028113,1.29196,2737.9,2737.6,44.0078]
[1739409028616,0.5615,2737.9,2737.8,0.73047]
[1739409029003,0.5615,2737.9,2737.6,44.0078]
[1739409029405,0.5615,2737.9,2737.8,0.73047]
[1739409029799,0.5615,2737.9,2737.6,44.0078]
[1739409029800,1.698,2738.1,2738.0,0.7304]
[1739409030511,1.698,2738.1,2738.0,1.2702]
[1739409032009,0.5536,2738.3,2738.2,0.73037]
[1739409032213,0.44026165,2738.4,2738.3,0.73034]
[1739409032816,1.65042,2738.8,2738.6,0.73025]
[1739409033015,0.5536,2738.8,2738.5,3.2078]
[1739409033210,0.44026165,2739.1,2738.9,0.73017]
[1739409033517,0.44026165,2739.1,2739.0,0.73015]
[1739409033710,0.5862,2739.3,2738.9,40.8]
[1739409034014,0.73011,2739.2,2738.9,41.53016]
[1739409034319,0.44026165,2739.4,2739.1,3.2078]
[1739409034616,0.44026165,2739.4,2739.3,0.73007]
[1739409034912,0.5862,2739.8,2739.3,3.94848117]
[1739409035215,0.5862,2739.8,2739.6,0.72998]
[1739409035712,0.5862,2739.8,2739.5,3.93782]
[1739409035916,1.704,2740.0,2739.7,0.72995]
[1739409036118,1.704,2740.0,2739.5,3.2078]
[1739409036317,1.704,2740.0,2739.8,3.2078]
[1739409036918,1.704,2740.0,2739.5,3.2078]
[1739409037310,0.72999,2739.7,2739.5,3.2078]
[1739409037621,0.73005,2739.4,2739.3,0.00547935]
[1739409037818,0.73014,2739.1,2738.6,3.93806]
[1739409038015,0.73014,2739.1,2738.6,3.2078]
[1739409038215,0.5574,2739.3,2738.6,3.2078]
[1739409038434,0.73021,2738.8,2738.6,3.2078]
[1739409038620,0.73027,2738.6,2738.2,3.2078]
[1739409038821,1.705,2738.8,2738.2,3.2078]
[1739409039017,0.00547935,2738.7,2738.2,3.2078]
[1739409039323,0.00547935,2738.7,2738.3,0.73034]
[1739409039522,0.00547935,2738.7,2738.6,0.73026]
[1739409039715,0.43728452,2739.1,2739.0,0.73015]
[1739409040021,0.43721211,2739.8,2739.0,8.87028117]
[1739409040219,0.43721211,2739.8,2739.7,0.72997]
[1739409040518,0.43721211,2739.8,2739.7,4.67845117]
[1739409040724,1.717,2740.3,2740.1,0.72986]
[1739409040918,1.717,2740.3,2740.0,0.72988]
[1739409041225,1.717,2740.3,2739.9,3.2078]
[1739409041817,0.579,2740.2,2739.9,3.2078]
[1739409042417,0.579,2740.2,2739.9,3.9377]
[1739409042614,0.579,2740.2,2739.9,3.2078]
[1739409043116,1.30885,2740.2,2739.9,3.2078]
[1739409043318,0.579,2740.2,2740.0,40.8]
[1739409044021,1.30885,2740.2,2740.0,40.8]
[1739409044217,1.30885,2740.2,2739.9,3.2078]
[1739409044413,0.579,2740.2,2739.9,3.2078]
[1739409044821,1.30886,2740.2,2739.9,3.2078]
[1739409045124,0.72986,2740.1,2739.9,3.2078]
[1739409045327,1.30885,2740.2,2739.9,3.2078]
[1739409045824,0.72989,2740.0,2739.9,3.2078]
[1739409046913,0.579,2740.2,2739.7,3.2078]
[1739409047121,0.72992,2739.9,2739.7,3.2078]
[1739409047521,0.579,2740.2,2739.7,3.2078]
[1739409048021,0.72992,2739.9,2739.6,0.5575]
[1739409048527,0.72996,2739.8,2739.6,0.5575]
[1739409049228,0.579,2740.2,2739.5,40.80547935]
[1739409049614,0.72996,2739.8,2739.5,40.80547935]
[1739409049818,0.72996,2739.8,2739.5,41.53549935]
[1739409050126,0.579,2740.2,2739.5,41.53549935]
[1739409050322,0.72994,2739.9,2739.5,41.53549935]
[1739409050521,0.72995,2739.8,2739.5,41.53549935]
[1739409051026,0.72993,2739.9,2739.6,0.72998]
[1739409051227,0.7299,2740.0,2739.7,3.2078]
[1739409051524,0.579,2740.2,2739.7,3.2078]
[1739409051721,0.579,2740.2,2739.7,3.93776]
[1739409051922,0.579,2740.2,2739.7,3.2078]
[1739409051923,0.72994,2739.8,2739.7,3.2078]
[1739409052927,2.83090377,2740.2,2739.7,3.2078]
[1739409052928,0.72992,2739.9,2739.7,3.2078]
[1739409053721,1.00627377,2740.2,2739.7,3.2078]
[1739409054524,0.72993,2739.9,2739.7,3.2078]
[1739409054718,1.00627377,2740.2,2739.7,3.2078]
[1739409055028,0.72994,2739.8,2739.7,3.2078]
[1739409055529,1.695,2739.8,2739.5,0.00547935]
[1739409055725,0.72999,2739.6,2739.5,0.00547935]
[1739409056426,22.7124,2740.5,2739.5,0.00547935]
[1739409056618,2.42587,2740.1,2739.7,3.2078]
[1739409056818,0.537,2740.3,2739.8,0.5831]
[1739409057023,1.30884,2740.2,2739.9,0.7299]
[1739409057630,0.72987,2740.1,2739.8,1.31303]
[1739409058026,1.30884,2740.2,2739.9,0.72991]
[1739409058325,0.579,2740.2,2739.8,0.5831]
[1739409058625,0.42782209,2740.4,2740.0,7.15628117]
[1739409058831,0.42782209,2740.4,2740.3,7.88609117]
[1739409059222,0.72965,2740.9,2740.5,0.72974]
[1739409059419,2.43363,2741.0,2740.6,45.33182]
[1739409059636,1.704,2741.0,2740.6,44.6021]
[1739409059827,1.704,2741.0,2740.6,3.8021]
[1739409060025,0.7297,2740.7,2740.6,3.8021]
[1739409060241,1.703,2741.0,2740.6,3.8021]
[1739409060429,1.703,2741.0,2740.6,44.6021]
[1739409060626,1.703,2741.0,2740.6,41.3943]
[1739409060935,0.7297,2740.7,2740.6,41.3943]
[1739409061927,0.7297,2740.7,2740.3,7.15628117]
[1739409062135,2.13141456,2741.0,2740.3,7.15628117]
[1739409062429,2.13141456,2741.0,2740.2,0.5503]
[1739409062632,3.2078,2740.5,2740.0,3.2078]
[1739409062833,2.8302,2740.4,2739.7,7.88624117]
[1739409063035,2.8302,2740.4,2739.7,7.15628117]
[1739409063337,0.72994,2739.8,2739.7,7.15628117]
[1739409063538,0.72994,2739.8,2739.7,3.2078]
[1739409063539,2.42994,2739.8,2739.7,3.2078]
[1739409063732,0.72997,2739.7,2739.6,0.5503]
[1739409064130,0.5804,2739.7,2738.8,3.2078]
[1739409064335,0.73013,2739.1,2738.8,3.2078]
[1739409064532,2.43317,2739.0,2738.8,3.2078]
[1739409064725,1.703,2739.0,2738.6,1.1241]
[1739409064930,1.703,2739.0,2738.6,0.5411]
[1739409065133,0.73023,2738.8,2738.4,3.2078]
[1739409065333,1.31059,2738.9,2738.5,0.00547935]
[1739409065936,0.73021,2738.8,2738.5,0.00547935]
[1739409066236,0.5804,2738.9,2738.5,0.00547935]
[1739409066638,0.73025,2738.7,2738.5,0.00547935]
[1739409066936,0.5804,2738.9,2738.5,0.00547935]
[1739409067132,0.73021,2738.8,2738.5,0.00547935]
[1739409067333,0.5804,2738.9,2738.5,0.00547935]
[1739409067529,1.00881456,2738.9,2738.5,0.00547935]
[1739409067725,1.73900456,2738.9,2738.5,0.00547935]
[1739409068134,0.42841456,2738.9,2738.8,0.73021]
[1739409068330,0.42841456,2738.9,2738.8,3.94848117]
[1739409068530,0.42841456,2738.9,2738.8,3.2078]
[1739409068738,0.73016,2739.0,2738.5,8.30176052]
[1739409068933,0.00547935,2739.1,2738.8,44.0078]
[1739409069132,0.73018,2738.9,2738.8,44.0078]
[1739409069932,0.73018,2738.9,2738.8,40.8]
[1739409070137,3.7966,2739.0,2738.5,0.00547935]
[1739409070441,0.73026,2738.6,2738.5,0.00547935]
[1739409070643,2.44026,2738.6,2738.5,0.00547935]
[1739409072635,5.64806,2738.6,2738.5,0.00547935]
[1739409073240,0.73042,2738.0,2737.9,3.2078]
[1739409074042,0.42841456,2738.5,2737.9,44.0078]
[1739409074341,2.13441456,2738.4,2738.2,3.2078]
[1739409074540,2.86473456,2738.4,2738.2,3.2078]
[1739409074736,0.73034,2738.3,2738.2,3.2078]
[1739409075332,1.706,2738.4,2737.9,40.80547935]
[1739409075538,0.73042,2738.0,2737.9,40.80547935]
[1739409075837,0.73042,2738.0,2737.9,0.00547935]
[1739409076237,1.706,2738.4,2737.9,0.00547935]
[1739409076438,1.706,2738.4,2738.1,3.2078]
[1739409076633,0.73037,2738.2,2738.1,3.2078]
[1739409077545,3.2078,2738.3,2737.9,0.00547935]
[1739409077754,0.73042,2738.0,2737.9,0.00547935]
[1739409078841,6.73042,2738.0,2737.9,0.00547935]
[1739409079144,0.73062,2737.3,2737.0,7.70998117]
[1739409079344,2.43662,2737.3,2737.0,7.70998117]
[1739409080032,1.706,2737.3,2737.0,7.70998117]
[1739409080237,1.706,2737.3,2737.2,0.73063]
[1739409080433,0.00547935,2737.5,2737.4,0.73058]
[1739409080643,1.71047935,2737.5,2737.4,3.93838]
[1739409080845,1.71047935,2737.5,2737.4,4.52038]
[1739409081041,1.71047935,2737.5,2737.4,3.7898]
[1739409082047,1.71047935,2737.5,2737.0,4.50218117]
[1739409082048,2.44102935,2737.5,2737.0,7.70998117]
[1739409082248,2.97962935,2737.5,2737.1,1.30545]
[1739409082443,2.24907935,2737.5,2737.0,7.15628117]
[1739409082652,2.97964935,2737.5,2737.1,0.73065]
[1739409082851,0.73058,2737.4,2737.1,0.73065]
[1739409083051,2.97964935,2737.5,2737.2,0.73063]
[1739409083253,2.24907935,2737.5,2737.0,47.95628117]
[1739409083442,0.73058,2737.4,2737.3,3.2078]
[1739409083660,0.73058,2737.4,2737.0,45.47916117]
[1739409083661,2.24907935,2737.5,2737.0,47.95628117]
[1739409084146,0.73066,2737.1,2737.0,44.0078]
[1739409084546,5.45687935,2737.5,2736.9,0.00547935]
[1739409084754,0.73069,2737.0,2736.9,0.00547935]
[1739409084946,2.43669,2737.0,2736.9,0.00547935]
[1739409087056,1.706,2737.0,2736.9,0.00547935]
[1739409087247,0.5715,2737.4,2736.9,0.00547935]
[1739409087448,1.707,2737.3,2737.1,3.2078]
[1739409087643,2.43762,2737.3,2737.1,3.2078]
[1739409087848,0.73063,2737.2,2737.1,3.2078]
[1739409088150,2.43762,2737.3,2737.1,3.2078]
[1739409088555,0.73063,2737.2,2737.1,3.2078]
[1739409088755,1.707,2737.3,2737.0,3.2078]
[1739409089053,1.707,2737.3,2737.0,3.7655]
[1739409089453,1.704,2737.3,2737.0,7.71398117]
[1739409090056,1.704,2737.3,2737.2,0.73063]
[1739409090855,0.73066,2737.2,2737.0,7.71398117]
[1739409091255,1.704,2737.3,2737.0,7.71398117]
[1739409091454,1.704,2737.3,2737.2,0.73063]
[1739409091854,2.43462,2737.3,2737.1,0.73065]
[1739409092657,2.43462,2737.3,2737.0,7.71398117]
[1739409092658,0.73064,2737.2,2737.0,4.49617]
[1739409092853,1.704,2737.3,2737.2,0.73063]
[1739409093355,0.00547935,2737.5,2737.4,0.73058]
[1739409093560,0.00547935,2737.5,2737.4,3.93838]
[1739409094058,0.00547935,2737.5,2737.4,4.49478]
[1739409094362,0.73602935,2737.5,2737.4,3.7642]
[1739409094558,0.73602935,2737.5,2737.4,3.2078]
[1739409094760,0.73065,2737.2,2737.1,3.2078]
[1739409094957,0.73069,2737.0,2736.9,0.56947935]
[1739409095450,0.73069,2737.0,2736.9,0.00547935]
[1739409096250,0.5558,2737.2,2736.9,0.00547935]
[1739409096455,1.28645,2737.2,2736.9,0.00547935]
[1739409096763,0.5558,2737.2,2737.0,0.73067]
[1739409096966,2.66446419,2737.4,2737.0,0.73067]
[1739409097259,2.66446419,2737.4,2736.9,0.00547935]
[1739409097454,2.66446419,2737.4,2736.9,0.73617935]
[1739409097455,0.73062,2737.3,2736.9,0.73617935]
[1739409097655,2.2362,2737.4,2736.9,0.00547935]
[1739409098159,0.73065,2737.2,2736.9,0.00547935]
[1739409098359,0.73068,2737.1,2736.9,0.00547935]
[1739409098667,0.73069,2737.0,2736.9,0.00547935]
[1739409098964,0.73068,2737.1,2736.9,0.00547935]
[1739409099158,0.73069,2737.0,2736.9,0.00547935]
[1739409102762,1.691,2737.0,2736.9,0.00547935]
[1739409103265,2.42169,2737.0,2736.9,0.00547935]
[1739409103561,0.73069,2737.0,2736.9,0.00547935]
[1739409103758,2.41969,2737.0,2736.9,0.00547935]
[1739409104757,1.689,2737.0,2736.9,0.00547935]
[1739409105269,2.41769,2737.0,2736.9,0.00547935]
[1739409106464,1.685,2737.0,2736.9,0.00547935]
[1739409106660,0.42988016,2737.3,2737.1,0.73065]
[1739409106961,1.685,2737.2,2737.1,0.73066]
[1739409107364,2.41564,2737.2,2737.0,0.5389]
[1739409108257,1.685,2737.2,2737.0,0.5389]
[1739409108463,0.73066,2737.1,2737.0,0.5389]
[1739409108767,0.73069,2737.0,2736.9,0.00547935]
[1739409108964,0.73068,2737.1,2736.9,0.00547935]
[1739409109571,0.73069,2737.0,2736.9,0.00547935]
[1739409109757,1.685,2737.2,2736.9,0.00547935]
[1739409109963,0.73066,2737.1,2736.9,0.00547935]
[1739409110163,1.685,2737.2,2736.9,0.00547935]
[1739409110564,0.73068,2737.1,2736.9,0.00547935]
[1739409110768,1.685,2737.2,2736.9,0.00547935]
[1739409110971,1.685,2737.2,2737.1,0.73066]
[1739409111264,1.68,2737.2,2736.9,0.00547935]
[1739409111470,1.68,2737.2,2737.1,0.73066]
[1739409112464,1.68,2737.2,2737.0,0.73067]
[1739409112963,1.68,2737.2,2736.9,0.00547935]
[1739409113161,2.41064,2737.2,2736.9,0.00547935]
[1739409113366,2.41064,2737.2,2737.0,0.73068]
[1739409113567,1.68,2737.2,2737.1,0.73066]
[1739409113758,1.68,2737.2,2737.1,3.2078]
[1739409113966,1.68,2737.2,2736.9,0.00547935]
[1739409114464,1.68,2737.2,2737.1,0.73066]
[1739409115464,1.68,2737.2,2737.0,0.5433]
[1739409115863,2.41064,2737.2,2737.0,1.27397]
[1739409116067,0.5372,2737.4,2737.3,0.73061]
[1739409116570,2.2112,2737.4,2737.3,0.73061]
[1739409117765,0.00547935,2737.5,2737.1,3.2078]
[1739409117974,1.674,2737.7,2737.6,0.73053]
[1739409118472,1.674,2737.7,2737.6,41.53053]
[1739409118871,0.42988016,2738.0,2737.6,40.8]
[1739409119175,1.16031016,2738.0,2737.7,0.73048]
[1739409119566,1.16030016,2738.0,2737.8,0.73046]
[1739409119766,0.42988016,2738.0,2737.8,3.93826]
[1739409120169,0.42988016,2738.0,2737.8,3.2078]
[1739409120474,1.68147935,2738.1,2738.0,0.73042]
[1739409120666,1.68147935,2738.1,2737.8,6.35964101]
[1739409120667,2.41188935,2738.1,2737.8,7.09010101]
[1739409120970,2.41188935,2738.1,2737.8,3.93826]
[1739409121368,1.68147935,2738.1,2738.0,0.73042]
[1739409121878,0.00547935,2738.1,2738.0,0.73042]
[1739409122372,1.673,2738.5,2737.8,6.35964101]
[1739409122573,1.673,2738.5,2738.4,0.73031]
[1739409123168,0.42988016,2738.6,2738.5,0.73029]
[1739409123375,2.2315,2739.1,2739.0,0.73015]
[1739409123862,1.673,2739.1,2739.0,0.73015]
[1739409124070,1.673,2739.1,2739.0,3.2078]
[1739409124469,1.673,2739.1,2739.0,3.93795]
[1739409125276,0.00547935,2739.3,2739.0,3.93795]
[1739409125277,0.00547935,2739.3,2739.2,0.7301]
[1739409127366,0.00547935,2739.3,2739.1,0.73013]
[1739409127567,0.73013,2739.1,2739.0,3.2078]
[1739409128066,0.00547935,2739.3,2739.0,3.2078]
[1739409128265,0.73556935,2739.3,2739.0,3.2078]
[1739409128571,0.00547935,2739.3,2739.0,3.2078]
[1739409129073,0.00547935,2739.3,2739.1,0.73013]